fUSD/lending_fUSD_20240617
["ID","MTS","AMOUNT","RATE_DAILY","PERIOD"]
[329716005,1718601056057,-4788.38967729,0.0002728,3]
[329716006,1718601056076,-1757.99426359,0.0002728,3]
[329716007,1718601056091,-8336.80839778,0.0002728,3]
[329716008,1718601056181,-275.90068157,0.00017259,2]
[329716009,1718601056193,-3007.63764276,0.0002728,3]
[329716010,1718601056246,-21054.75575699,0.0002728,3]
[329716011,1718601056273,-489.02686996,0.0002728,3]
[329716012,1718601056289,-3965.93903504,0.0002728,3]
[329716013,1718601056303,-295.25514135,0.0002728,3]
[329716014,1718601056317,-1018.3,0.0002728,3]
[329716015,1718601056345,-3821.0,0.0002728,3]
[329716016,1718601056366,-1462.48332121,0.0002728,3]
[329716017,1718601056519,-800.39511076,0.0002728,3]
[329716018,1718601056533,-19671.33103814,0.0002728,3]
[329716019,1718601056545,-2306.87815915,0.0002728,3]
[329716020,1718601056558,-5882.61331955,0.0002728,3]
[329716021,1718601056584,-1014.75723147,0.0002728,3]
[329716022,1718601056596,-12918.10069181,0.0002728,3]
[329716023,1718601056628,-27648.882471,0.0002728,3]
[329716024,1718601056642,-7689.66588969,0.0002728,3]
[329716025,1718601057019,-793.35168184,0.0002728,3]
[329716026,1718601057033,-383.87296915,0.0002728,3]
[329716027,1718601057050,-1458.83968283,0.0002728,3]
[329716028,1718601057080,-409.14193754,0.0002728,3]
[329716029,1718601057208,-674.79429573,0.0002728,3]
[329716030,1718601057223,-1258.7533834,0.0002728,3]
[329716031,1718601061092,200.0,0.000275,120]
[329716032,1718601066197,200.0,0.000275,120]
[329716034,1718601132476,24973.706691,0.00027,30]
[329716035,1718601160244,157.061714,0.000273,63]
[329716036,1718601162447,157.061714,0.000273,63]
[329716037,1718601166511,157.061714,0.000273,64]
[329716038,1718601167478,157.061714,0.000273,64]
[329716040,1718601170248,157.061714,0.000273,65]
[329716041,1718601171157,157.061714,0.000273,65]
[329716048,1718601337411,-400.0,0.00013378,2]
[329716049,1718601337445,-365.8342231,0.00013378,2]
[329716050,1718601337476,-155.0,0.00013378,2]
[329716051,1718601337542,-264.1328159,0.00013379,2]
[329716052,1718601337593,-1797.83256212,0.00013379,2]
[329716053,1718601337673,-155.0,0.00013379,2]
[329716054,1718601337782,-155.0,0.0001338,2]
[329716055,1718601337818,-536.81180436,0.0001338,2]
[329716056,1718601337895,-6170.38859452,0.0001338,2]
[329716057,1718601338539,-3060.5288888,0.0001338,2]
[329716058,1718601338607,-150.0,0.00013381,2]
[329716059,1718601338653,-155.0,0.00013391,2]
[329716060,1718601338702,-2304.4510636,0.00013396,2]
[329716061,1718601378044,300.00836122,0.00013396,2]
[329716062,1718601378904,411.06881336,0.00013396,2]
[329716063,1718601379219,290.13912195,0.00013396,2]
[329716064,1718601383614,363.30221515,0.00013396,2]
[329716065,1718601383682,948.686561,0.00013396,2]
[329716066,1718601384114,263.16768876,0.00013396,2]
[329716067,1718601385287,155.0,0.00013396,2]
[329716068,1718601394028,300.00836122,0.00013396,2]
[329716069,1718601394949,411.06881336,0.00013396,2]
[329716070,1718601397368,435.85195454,0.00013396,2]
[329716071,1718601401365,363.30221515,0.00013396,2]
[329716072,1718601402404,88.41594189,0.00013396,2]
[329716073,1718601402445,860.27061911,0.00013396,2]
[329716074,1718601403315,155.0,0.00013396,2]
[329716075,1718601404147,387.04380162,0.00013396,2]
[329716076,1718601414030,226.52332743,0.00013396,2]
[329716077,1718601414946,535.86636873,0.00013396,2]
[329716078,1718601419306,513.18655121,0.00013396,2]
[329716079,1718601425391,155.0,0.00013396,2]
[329716081,1718601465271,399.41886431,0.00013396,2]
[329716086,1718601961770,6767.69046759,0.00013396,2]
[329716087,1718601961806,1000.0,0.00013396,2]
[329716088,1718601961843,1000.0,0.00013396,2]
[329716089,1718601961876,1000.0,0.00013396,2]
[329716090,1718601961938,1000.0,0.00013396,2]
[329716091,1718601961998,1000.0,0.00013396,2]
[329716092,1718601962067,1000.0,0.00013396,2]
[329716093,1718601962128,1000.0,0.00013396,2]
[329716094,1718601962199,1000.0,0.00013396,2]
[329716095,1718601962233,1000.0,0.00013396,2]
[329716096,1718602003089,-5000.0,0.00013395,2]
[329716097,1718602004375,-5000.0,0.00013395,2]
[329716098,1718602004913,-5000.0,0.00013395,2]
[329716099,1718602005383,-5000.0,0.00013395,2]
[329716100,1718602005759,-5000.0,0.00013395,2]
[329716101,1718602006072,-5000.0,0.00013395,2]
[329716102,1718602006556,-5000.0,0.00013395,2]
[329716103,1718602011603,-1000.0,0.00013395,2]
[329716104,1718602011973,-1000.0,0.00013395,2]
[329716105,1718602012305,-1000.0,0.00013395,2]
[329716106,1718602012744,-1000.0,0.00013395,2]
[329716107,1718602128847,2555.49409125,0.00010046,2]
[329716108,1718602146679,176.00874086,0.00010046,2]
[329716109,1718602206136,948.686561,0.00010046,2]
[329716110,1718602207000,1364.80333341,0.00010046,2]
[329716111,1718602209377,155.0,0.00010046,2]
[329716112,1718602209557,155.0,0.00010046,2]
[329716113,1718602210388,363.30221515,0.00010046,2]
[329716114,1718602210846,4281.70505833,0.00010046,2]
[329716115,1718602210886,10000.0,0.00010046,2]
[329716116,1718602210936,10000.0,0.00010046,2]
[329716117,1718602211027,10000.0,0.00010046,2]
[329716119,1718602233213,-1600.97344353,0.00010046,2]
[329716120,1718602233732,-398530.46139499,0.00010046,2]
[329716121,1718602233765,-300.00836122,0.00010046,2]
[329716122,1718602233798,-290.13912195,0.00010046,2]
[329716123,1718602233812,-263.16768876,0.00010046,2]
[329716124,1718602233832,-411.06881336,0.00010046,2]
[329716125,1718602233856,-19795.83497398,0.00010046,2]
[329716126,1718602233908,-948.686561,0.00010046,2]
[329716127,1718602233941,-155.0,0.00010046,2]
[329716128,1718602233993,-716.48618065,0.00010046,2]
[329716129,1718602234004,-363.30221515,0.00010046,2]
[329716130,1718602234034,-155.0,0.00010046,2]
[329716131,1718602234047,-624.66,0.00010959,2]
[329716132,1718602234104,-155.0,0.00013065,2]
[329716133,1718602234124,-9230.91748332,0.00013065,2]
[329716134,1718602234186,-264.1328159,0.00013066,2]
[329716135,1718602234215,-1797.83256212,0.00013066,2]
[329716136,1718602234242,-626.90005025,0.00013067,2]
[329716137,1718602234264,-155.0,0.00013067,2]
[329716138,1718602234275,-529.23291916,0.00013067,2]
[329716139,1718602234302,-172.48,0.00013068,2]
[329716140,1718602234318,-2624.290886,0.00013154,2]
[329716141,1718602234329,-400.0,0.00013219,2]
[329716142,1718602234344,-155.0,0.00013219,2]
[329716143,1718602234373,-453.88610411,0.0001322,2]
[329716144,1718602234383,-315.68363272,0.0001322,2]
[329716145,1718602234413,-536.81180436,0.00013221,2]
[329716146,1718602234424,-155.0,0.00013222,2]
[329716147,1718602234435,-150.0,0.00013223,2]
[329716148,1718602234446,-210.0,0.00014546,2]
[329716149,1718602234460,-4578.5,0.00014732,2]
[329716150,1718602234478,-164.12,0.00014832,2]
[329716151,1718602234491,-14805.38122042,0.00015463,2]
[329716152,1718602234503,-372.74182864,0.00015465,2]
[329716153,1718602234513,-293.0,0.00016,2]
[329716154,1718602234524,-468.73,0.00016319,2]
[329716155,1718602234537,-558.38,0.00016396,2]
[329716156,1718602234552,-1839.11,0.00016486,2]
[329716157,1718602234563,-250.0,0.00016495,2]
[329716158,1718602234577,-283.44,0.0001681,2]
[329716159,1718602234588,-159.90595749,0.00017157,2]
[329716160,1718602234600,-7207.86361544,0.00017258,2]
[329716161,1718602234618,-235.69,0.00017651,2]
[329716162,1718602234628,-297.44,0.0001807,2]
[329716163,1718602234640,-323.26850622,0.00018099,2]
[329716164,1718602234657,-23890.0,0.0001814,2]
[329716165,1718602234670,-226.75,0.00018147,2]
[329716166,1718602234734,-2780.41,0.00018187,2]
[329716167,1718602234747,-250.0,0.00018199,2]
[329716168,1718602234765,-337.88,0.00018226,2]
[329716169,1718602234777,-200.0,0.00018553,2]
[329716170,1718602234812,-468.73,0.00018583,2]
[329716171,1718602234828,-179.34,0.00018623,2]
[329716172,1718602234849,-164.74,0.0001867,2]
[329716173,1718602234861,-164.74,0.00018721,2]
[329716174,1718602234918,-326.04163819,0.00018723,2]
[329716175,1718602234941,-200.0,0.00018765,2]
[329716176,1718602234954,-164.74,0.00018772,2]
[329716177,1718602234965,-246480.22279635,0.00018822,2]
[329716178,1718602234985,-933.49206678,0.00018822,2]
[329716179,1718602234999,-1080.10326062,0.00018822,2]
[329716180,1718602235247,-338.36,0.00018822,2]
[329716181,1718602235285,-137404.27161152,0.00018822,2]
[329716182,1718602235543,-164.74,0.00018823,2]
[329716183,1718602235586,-164.74,0.00018874,2]
[329716184,1718602235597,-164.74,0.00018926,2]
[329716185,1718602235613,-323.2685062,0.0001895,2]
[329716186,1718602235648,-164.74,0.00018977,2]
[329716187,1718602235667,-164.74,0.00019028,2]
[329716188,1718602235704,-164.74,0.00019079,2]
[329716189,1718602235720,-164.74,0.0001913,2]
[329716190,1718602235747,-330.19764927,0.00019178,2]
[329716191,1718602235759,-164.74,0.00019182,2]
[329716192,1718602235770,-0.39798646,0.00019233,2]
[329716193,1718602235785,-164.34201354,0.00019233,2]
[329716194,1718602235796,-164.74,0.00019284,2]
[329716195,1718602235806,-164.74,0.00019335,2]
[329716196,1718602235828,-350.1877023,0.00019371,2]
[329716197,1718602235843,-355.41834579,0.00019371,2]
[329716198,1718602235868,-1965.30395191,0.00019371,2]
[329716199,1718602235880,-164.74,0.00019386,2]
[329716200,1718602235890,-499.99,0.00019399,2]
[329716201,1718602235901,-167.01,0.00019432,2]
[329716202,1718602235916,-164.74,0.00019438,2]
[329716203,1718602235940,-164.74,0.00019489,2]
[329716204,1718602235961,-169.26,0.00019536,2]
[329716205,1718602235988,-164.74,0.0001954,2]
[329716206,1718602236003,-264.97,0.00019582,2]
[329716207,1718602236015,-164.74,0.00019591,2]
[329716208,1718602236036,-164.74,0.00019643,2]
[329716209,1718602236065,-2500.0,0.00019798,2]
[329716210,1718602236076,-258.2312,0.00019799,2]
[329716211,1718602236091,-1218.9481,0.00019799,2]
[329716212,1718602236105,-161.97625999,0.000198,2]
[329716213,1718602236116,-323.2685062,0.000198,2]
[329716214,1718602236126,-219.58,0.00019808,2]
[329716215,1718602236139,-779.5215,0.00019899,2]
[329716216,1718602236159,-1260.0383,0.00019899,2]
[329716217,1718602236177,-64699.03346305,0.00019899,2]
[329716240,1718602239706,-365.8342231,0.00013064,2]
[329716241,1718602239717,-692172.58128233,0.00019181,2]
[329716242,1718602239731,-180300.96653695,0.00019899,2]
[329716243,1718602239744,-236.48185711,0.000199,2]
[329716244,1718602239756,-186.70042845,0.00019989,2]
[329716245,1718602239785,-155.16183558,0.0002,2]
[329716246,1718602239814,-464.38290661,0.0002,2]
[329716247,1718602239852,-287.96381312,0.0002,2]
[329716248,1718602239891,-536.94541737,0.0002,2]
[329716249,1718602239914,-301.15856189,0.0002,2]
[329716250,1718602239948,-4393.16173838,0.0002,2]
[329716251,1718602239968,-410.89679887,0.0002,2]
[329716252,1718602239982,-4267.4215165,0.0002,2]
[329716253,1718602240003,-172.13,0.00020077,2]
[329716254,1718602240042,-200.01,0.00020309,2]
[329716255,1718602240068,-264.97,0.00020561,2]
[329716256,1718602240090,-468.73,0.00020847,2]
[329716257,1718602240101,-236.48185709,0.00020957,2]
[329716258,1718602240120,-337.88,0.00020965,2]
[329716259,1718602240160,-1250.0,0.00021,2]
[329716260,1718602240172,-264.97,0.0002154,2]
[329716261,1718602240207,-158.57931071,0.00021917,2]
[329716262,1718602240265,-392.66,0.00021918,2]
[329716263,1718602240281,-151.87,0.00021918,2]
[329716264,1718602240294,-250.0,0.00021918,2]
[329716265,1718602240322,-791.75453443,0.00022012,2]
[329716266,1718602240335,-236.48185709,0.00022013,2]
[329716267,1718602240361,-264.97,0.00022519,2]
[329716268,1718602240384,-326.04163818,0.00023062,2]
[329716269,1718602240396,-236.48185709,0.0002307,2]
[329716270,1718602240409,-468.73,0.00023111,2]
[329716271,1718602240430,-264.97,0.00023499,2]
[329716272,1718602240464,-337.88,0.00023705,2]
[329716273,1718602240482,-236.48185709,0.00024127,2]
[329716274,1718602240501,-151.0,0.00024235,3]
[329716275,1718602240528,-459.89,0.00024384,2]
[329716276,1718602240581,-759.45552639,0.00024656,2]
[329716277,1718602240594,-165.97255894,0.00024798,2]
[329716278,1718602240610,-165.97255894,0.00024798,2]
[329716279,1718602240623,-165.97255894,0.00024798,2]
[329716280,1718602240652,-165.97255894,0.00024798,2]
[329716281,1718602240666,-165.97255894,0.00024798,2]
[329716282,1718602240682,-157.46377538,0.00024799,2]
[329716283,1718602240728,-151.0,0.00024824,4]
[329716284,1718602240758,-2500.0,0.000249,2]
[329716285,1718602240773,-686942.0,0.00025,2]
[329716286,1718602240825,-236.48185709,0.00025184,2]
[329716287,1718602240839,-165.97255894,0.00025186,2]
[329716288,1718602240855,-468.73,0.00025375,2]
[329716289,1718602240876,-151.0,0.00025413,4]
[329716290,1718602240888,-515.33513801,0.00026002,2]
[329716291,1718602240946,-151.0,0.00026002,5]
[329716292,1718602240958,-543.75500959,0.00026017,2]
[329716293,1718602240978,-515.33513801,0.0002602,2]
[329716294,1718602240995,-1304.18884834,0.00026025,2]
[329716295,1718602241070,-543.75500959,0.00026068,2]
[329716296,1718602241100,-179.34,0.00026072,2]
[329716297,1718602241127,-166.66666666,0.00026085,2]
[329716298,1718602241141,-154.14189944,0.00026086,2]
[329716299,1718602241164,-152.0,0.00026126,3]
[329716300,1718602241175,-1263.83270293,0.00026235,2]
[329716301,1718602241188,-236.48185709,0.0002624,2]
[329716302,1718602241210,-1263.83270293,0.0002625,2]
[329716303,1718602241237,-2762.42374709,0.00026259,2]
[329716304,1718602241254,-327.79515069,0.0002633,2]
[329716305,1718602241320,-162.3311352,0.00026335,2]
[329716306,1718602241395,-160.98622915,0.0002636,2]
[329716307,1718602241418,-375.71286434,0.00026407,2]
[329716308,1718602241476,-375.71286434,0.0002647,2]
[329716309,1718602241491,-167.36514646,0.00026548,2]
[329716310,1718602241515,-151.0,0.00026591,5]
[329716311,1718602241545,-177.4023743,0.00026608,2]
[329716312,1718602241561,-2762.42374709,0.00026618,2]
[329716313,1718602241597,-375.71286434,0.00026647,2]
[329716314,1718602241609,-167.97135604,0.00026699,2]
[329716315,1718602241625,-162.3311352,0.00026722,2]
[329716316,1718602241640,-515.33513801,0.00026738,2]
[329716317,1718602241657,-1068.51958103,0.00026852,2]
[329716318,1718602241667,-150.07867034,0.0002688,2]
[329716319,1718602241678,-1263.83270293,0.000269,2]
[329716320,1718602241689,-375.71286434,0.00026906,2]
[329716321,1718602241700,-1068.51958103,0.00026996,2]
[329716322,1718602241724,-1068.51958103,0.00026999,2]
[329716323,1718602241736,-155.0,0.00027,10]
[329716324,1718602241764,-2245.3917178,0.00027,3]
[329716325,1718602241807,-551.55881531,0.00027005,4]
[329716326,1718602241838,-153.04212064,0.00027042,2]
[329716327,1718602241852,-170.91365126,0.00027066,2]
[329716328,1718602241867,-150.0,0.00027071,2]
[329716331,1718602241941,-1140.52429588,0.0002708,2]
[329716333,1718602241984,-1263.83270293,0.0002709,2]
[329716335,1718602242006,-1140.52429579,0.00027109,2]
[329716337,1718602242019,-500.0,0.00027123,8]
[329716338,1718602242047,-500.0,0.00027123,8]
[329716340,1718602242063,-500.0,0.00027123,8]
[329716342,1718602242086,-500.0,0.00027123,8]
[329716344,1718602242097,-500.0,0.00027123,8]
[329716346,1718602242108,-508.85,0.00027123,8]
[329716348,1718602242134,-9703.55,0.00027123,8]
[329716350,1718602242160,-9703.55,0.00027123,8]
[329716351,1718602242172,-9703.55,0.00027123,8]
[329716353,1718602242184,-3759.6247512,0.00027123,8]
[329716356,1718602242615,-311.36197037,0.00027123,8]
[329716357,1718602242632,-2726.77650109,0.00027123,8]
[329716358,1718602242647,-657.76259654,0.00027123,8]
[329716359,1718602243570,-2109.83826179,0.00027123,8]
[329716360,1718602243589,-138.18591901,0.00027123,8]
[329716361,1718602243602,-246.04317459,0.00027123,8]
[329716362,1718602243630,-3191.41997605,0.00027123,8]
[329716364,1718602243652,-434.55000021,0.00027123,8]
[329716365,1718602243668,-255.53745705,0.00027123,8]
[329716366,1718602243683,-5575.9993921,0.00027123,8]
[329716367,1718602243700,-1140.52429579,0.00027138,2]
[329716368,1718602243745,-153.04212064,0.00027165,2]
[329716369,1718602243781,-1140.52429579,0.00027167,2]
[329716370,1718602243816,-7028.68179715,0.00027179,8]
[329716371,1718602243969,-2674.86820285,0.00027179,8]
[329716372,1718602244002,-155.30800662,0.00027179,2]
[329716373,1718602244031,-1282.13442553,0.0002718,2]
[329716376,1718602246558,-460.69291176,0.00026905,2]
[329716377,1718602246571,-499.99,0.00027167,2]
[329716378,1718602246625,-475.21900376,0.0002718,2]
[329716380,1718602246898,-1383.8566216,0.0002718,2]
[329716381,1718602247250,-279.15649009,0.0002718,2]
[329716382,1718602247271,-777.87029025,0.0002718,2]
[329716383,1718602248002,-169.88478293,9.946e-05,2]
[329716384,1718602248037,-500.0,0.00027123,8]
[329716385,1718602248104,-782.68678216,0.0002718,2]
[329716386,1718602248184,-1057.47179806,0.0002718,2]
[329716387,1718602248217,-459.8958,0.0002718,2]
[329716388,1718602248244,-7798.92387174,0.0002718,2]
[329716389,1718602248259,-983.81732448,0.0002718,2]
[329716390,1718602248289,-767.13101163,0.0002718,2]
[329716391,1718602248321,-10307.53562615,0.0002718,2]
[329716392,1718602248347,-690.0,0.0002718,2]
[329716393,1718602248366,-12334.44745455,0.0002718,2]
[329716394,1718602248379,-1718.3203,0.0002718,2]
[329716395,1718602248391,-1000.0,0.0002718,2]
[329716396,1718602248402,-100000.0,0.0002718,2]
[329716397,1718602248444,-1263.83270293,0.0002718,2]
[329716398,1718602248458,-151.0,0.0002718,5]
[329716399,1718602248490,-1140.52429579,0.00027196,2]
[329716400,1718602248508,-10000.0,0.000272,2]
[329716401,1718602248521,-291.0,0.000272,2]
[329716402,1718602248541,-150.0,0.000272,5]
[329716403,1718602248557,-1140.52429579,0.00027225,2]
[329716404,1718602248586,-478.36909141,0.0002723,2]
[329716405,1718602248600,-1140.52429579,0.00027255,2]
[329716406,1718602248625,-1000.0,0.0002726,2]
[329716407,1718602248636,-1000.0,0.0002726,2]
[329716408,1718602248647,-1000.0,0.0002726,2]
[329716409,1718602248672,-1000.0,0.0002726,2]
[329716410,1718602248684,-1000.0,0.0002726,2]
[329716411,1718602248705,-167.09129019,0.0002726,2]
[329716412,1718602248715,-800.0,0.0002726,2]
[329716413,1718602248744,-515.33513801,0.00027264,2]
[329716414,1718602248780,-206.31709052,0.00027269,2]
[329716415,1718602248856,-4100.87740017,0.00027269,2]
[329716416,1718602248872,-5768.9715109,0.00027271,2]
[329716417,1718602248886,-3911.4883821,0.00027271,2]
[329716418,1718602248899,-3033.8442619,0.00027274,6]
[329716419,1718602248911,-2782.05447888,0.00027277,2]
[329716420,1718602248924,-150.0,0.00027279,10]
[329716421,1718602248940,-120568.00050546,0.0002728,3]
[329716422,1718602248972,-776.81557547,0.0002728,3]
[329716423,1718602249146,-477.85745099,0.00027123,8]
[329716424,1718602249168,-22.14254901,0.00027123,8]
[329716425,1718602249180,-4675.74706937,0.0002728,3]
[329716426,1718602249211,-63561.57607074,0.0002728,3]
[329716427,1718602249232,-300.0,0.0002728,2]
[329716428,1718602249243,-568.578407,0.0002728,7]
[329716429,1718602249258,-151.0,0.0002728,7]
[329716430,1718602249272,-344.608196,0.0002728,7]
[329716431,1718602249282,-344.608196,0.0002728,7]
[329716432,1718602249310,-151.0,0.0002728,7]
[329716433,1718602249333,-566.91378,0.0002728,7]
[329716434,1718602249345,-566.91378,0.0002728,7]
[329716435,1718602249357,-151.0,0.0002728,7]
[329716437,1718602249371,-151.0,0.0002728,7]
[329716439,1718602249383,-151.0,0.0002728,7]
[329716442,1718602249397,-153.313088,0.0002728,7]
[329716443,1718602249412,-151.0,0.0002728,7]
[329716445,1718602249447,-151.0,0.0002728,7]
[329716447,1718602249461,-451.639434,0.0002728,7]
[329716449,1718602249473,-151.0,0.0002728,7]
[329716451,1718602249488,-151.0,0.0002728,7]
[329716453,1718602249510,-451.639434,0.0002728,7]
[329716455,1718602249544,-164.800047,0.0002728,7]
[329716457,1718602249556,-246.886214,0.0002728,7]
[329716460,1718602249579,-151.0,0.0002728,7]
[329716461,1718602249593,-246.886214,0.0002728,7]
[329716463,1718602249625,-151.0,0.0002728,7]
[329716465,1718602249655,-722.906529,0.0002728,7]
[329716467,1718602249706,-722.906529,0.0002728,7]
[329716469,1718602249750,-243.626236,0.0002728,7]
[329716471,1718602249763,-247.51756,0.0002728,7]
[329716473,1718602249821,-247.51756,0.0002728,7]
[329716476,1718602249840,-4100.87740015,0.00027283,2]
[329716478,1718602249852,-1140.52429579,0.00027284,2]
[329716480,1718602249911,-236.48185709,0.00027297,2]
[329716481,1718602249930,-165.97255894,0.00027297,2]
[329716483,1718602249942,-4100.87740015,0.00027297,2]
[329716485,1718602249956,-308.00513003,0.000273,7]
[329716487,1718602249967,-160.0,0.000273,2]
[329716489,1718602249996,-500.0,0.000273,2]
[329716491,1718602250010,-500.0,0.000273,2]
[329716493,1718602250021,-500.0,0.000273,2]
[329716495,1718602250035,-500.0,0.000273,2]
[329716497,1718602250056,-500.0,0.000273,2]
[329716498,1718602250078,-500.0,0.000273,2]
[329716501,1718602250106,-500.0,0.000273,2]
[329716503,1718602250149,-500.0,0.000273,2]
[329716505,1718602250167,-3871.36,0.000273,2]
[329716507,1718602250193,-1048.51520528,0.000273,2]
[329716508,1718602250240,-607.0,0.000273,2]
[329716509,1718602250255,-569.407646,0.000273,2]
[329716510,1718602250293,-150.0,0.000273,2]
[329716511,1718602250304,-996.16,0.000273,2]
[329716512,1718602250315,-413.781887,0.000273,2]
[329716513,1718602250326,-309.2,0.000273,2]
[329716514,1718602250347,-1140.52429579,0.00027313,2]
[329716515,1718602250363,-1068.51958103,0.00027331,2]
[329716516,1718602250393,-1140.52429579,0.00027342,2]
[329716517,1718602250431,-500.69,0.00027344,2]
[329716518,1718602250454,-6508.9114385,0.00027349,2]
[329716519,1718602250465,-4433.0201664,0.00027352,2]
[329716520,1718602250476,-375.71286434,0.00027354,2]
[329716521,1718602250500,-500.0,0.00027356,2]
[329716522,1718602250519,-500.0,0.00027365,2]
[329716523,1718602250544,-244128.0,0.00027368,2]
[329716524,1718602250557,-327.79515069,0.00027369,2]
[329716525,1718602250574,-48949.88748158,0.00027371,13]
[329716526,1718602250672,-411.06881336,0.00010046,2]
[329716527,1718602250683,-332.7988604,0.00027123,8]
[329716528,1718602250722,-167.2011396,0.00027123,8]
[329716529,1718602250740,-1239.7988604,0.00027371,13]
[329716530,1718602250757,-4704.000003,0.00027371,13]
[329716531,1718602250911,-328.04999985,0.00027123,8]
[329716532,1718602250939,-171.95000015,0.00027123,8]
[329716533,1718602250954,-500.0,0.00027123,8]
[329716534,1718602250983,-290.19819684,0.00027371,13]
[329716535,1718602251680,-300.00836122,0.00010046,2]
[329716536,1718602251691,-399.41886431,0.00010046,2]
[329716537,1718602251702,-290.13912195,0.00010046,2]
[329716538,1718602251713,-513.18655121,0.00010046,2]
[329716539,1718602251724,-500.0,0.00027123,8]
[329716540,1718602251734,-500.0,0.00027123,8]
[329716541,1718602251745,-500.0,0.00027123,8]
[329716542,1718602251756,-500.0,0.00027259,8]
[329716543,1718602251767,-514522.01304208,0.00027371,13]
[329716544,1718602251791,-1140.52429579,0.00027371,2]
[329716545,1718602251813,-7248.851366,0.00027371,2]
[329716546,1718602251839,-7988.7912936,0.00027371,2]
[329716547,1718602251849,-8728.7312212,0.00027371,2]
[329716548,1718602251864,-9468.6711487,0.00027371,2]
[329716549,1718602251882,-4954.5519507,0.00027371,2]
[329716550,1718602251892,-5476.083735,0.00027371,2]
[329716551,1718602251904,-5997.6155193,0.00027371,2]
[329716552,1718602251914,-6519.1473036,0.00027371,2]
[329716553,1718602251935,-16186.0,0.00027372,2]
[329716554,1718602251945,-500.0,0.00027374,2]
[329716555,1718602251976,-500.0,0.00027382,2]
[329716556,1718602251987,-543.75500959,0.00027383,2]
[329716557,1718602252000,-500.0,0.00027384,2]
[329716558,1718602252017,-500.0,0.00027384,2]
[329716559,1718602252028,-156.48297965,0.00027389,10]
[329716560,1718602252039,-156.1425965,0.00027389,10]
[329716561,1718602252049,-15912.95537612,0.0002739,5]
[329716562,1718602252084,-167461.59710981,0.0002739,5]
[329716563,1718602252521,-155.0,0.00010046,2]
[329716564,1718602252533,-500.0,0.00027326,8]
[329716565,1718602252550,-232.78,0.00027367,8]
[329716566,1718602252562,-59834.16761031,0.0002739,5]
[329716567,1718602252576,-20070.5212217,0.0002739,5]
[329716568,1718602323348,-162.63655556,9.942e-05,2]
[329716569,1718602328163,-162.63655556,9.941e-05,2]
[329716570,1718602328738,-162.63655556,9.941e-05,2]
[329716571,1718602329661,-162.63655556,9.941e-05,2]
[329716572,1718602330432,-162.63655556,9.941e-05,2]
[329716573,1718602331430,-38.99594076,9.941e-05,2]
[329716574,1718602331487,-123.6406148,9.941e-05,2]
[329716575,1718602345076,-155.0,9.94e-05,2]
[329716576,1718602345181,-7.63655556,9.94e-05,2]
[329716577,1718602347521,-162.63655556,9.939e-05,2]
[329716578,1718602353178,-155.0,9.938e-05,2]
[329716579,1718602353212,-7.63655556,9.939e-05,2]
[329716580,1718602354421,-65.1313846,9.939e-05,2]
[329716581,1718602354450,-97.50517096,9.939e-05,2]
[329716582,1718602355230,-104.38831333,9.939e-05,2]
[329716583,1718602355282,-58.24824223,9.939e-05,2]
[329716584,1718602372450,-155.0,9.938e-05,2]
[329716585,1718602372515,-155.0,9.938e-05,2]
[329716586,1718602372562,-1934.87732441,9.939e-05,2]
[329716587,1718602372593,-482.51782929,9.939e-05,2]
[329716588,1718602372655,-162.83666583,9.939e-05,2]
[329716589,1718602372690,-188.38769027,9.94e-05,2]
[329716590,1718602372728,-163.49791887,9.94e-05,2]
[329716591,1718602372761,-118.26187714,9.941e-05,2]
[329716592,1718602372805,-6639.62069419,9.941e-05,2]
[329716593,1718602373025,-10000.0,9.941e-05,2]
[329716594,1718602373562,-10000.0,9.941e-05,2]